fUST/lending_fUST_20240624
["ID","MTS","AMOUNT","RATE_DAILY","PERIOD"]
[330233229,1719197440011,-890.79,0.00016438,2]
[330233230,1719197440020,-25112.88,0.00016438,2]
[330233231,1719197440029,-933.78,0.00016438,2]
[330233232,1719197440039,-500.0,0.00016438,2]
[330233233,1719197440048,-500.0,0.00016438,2]
[330233234,1719197440057,-500.0,0.00016438,2]
[330233235,1719197440067,-505.18948488,0.00016438,2]
[330233236,1719197440076,-500.0,0.00016438,2]
[330233237,1719197440085,-4411.75,0.00016438,2]
[330233238,1719197440095,-1047.49,0.00016438,2]
[330233239,1719197440104,-1143.25,0.00016438,2]
[330233240,1719197440113,-500.19015306,0.00016438,2]
[330233241,1719197440125,-500.0,0.00016438,2]
[330233242,1719197440134,-2389.29,0.00016438,2]
[330233243,1719197440143,-500.0,0.00016438,2]
[330233244,1719197440153,-500.17473438,0.00016438,2]
[330233245,1719197440162,-504.29479122,0.00016438,2]
[330233246,1719197440171,-500.0,0.00016438,2]
[330233247,1719197440181,-191.26812037,0.00016438,2]
[330233248,1719197440190,-500.0,0.00016438,2]
[330233249,1719197440199,-664.01,0.00016438,2]
[330233250,1719197440211,-1462.6,0.00016438,2]
[330233251,1719197440222,-4534.09,0.00016438,2]
[330233252,1719197440231,-500.0,0.00016438,2]
[330233253,1719197440239,-713.99,0.00016438,2]
[330233254,1719197440248,-1037.16,0.00016438,2]
[330233255,1719197440258,-986.02,0.00016438,2]
[330233256,1719197440267,-610.54721276,0.00016438,2]
[330233257,1719197440276,-834.85,0.00016438,2]
[330233258,1719197440285,-500.0,0.00016438,2]
[330233259,1719197440294,-216.03417632,0.00016438,2]
[330233260,1719197440304,-1898.67,0.00016438,2]
[330233261,1719197440313,-500.0,0.00016438,2]
[330233262,1719197440322,-833.7,0.00016438,2]
[330233263,1719197440332,-500.0,0.00016438,2]
[330233264,1719197440341,-500.0,0.00016438,2]
[330233265,1719197440350,-768.02,0.00016438,2]
[330233266,1719197440359,-500.0,0.00016438,2]
[330233267,1719197440368,-3012.18,0.00016438,2]
[330233268,1719197440377,-500.0,0.00016438,2]
[330233269,1719197440387,-500.0,0.00016438,2]
[330233270,1719197440395,-1189.96,0.00016438,2]
[330233271,1719197440404,-5381.87,0.00016438,2]
[330233272,1719197440414,-500.0,0.00016438,2]
[330233273,1719197440423,-500.0,0.00016438,2]
[330233274,1719197440432,-657.78,0.00016438,2]
[330233275,1719197440441,-500.0,0.00016438,2]
[330233276,1719197440451,-763.16,0.00016438,2]
[330233277,1719197440460,-600.31,0.00016438,2]
[330233278,1719197440469,-2229.87,0.00016438,2]
[330233279,1719197440479,-500.0,0.00016438,2]
[330233280,1719197440488,-628.73,0.00016438,2]
[330233281,1719197440497,-3510.25,0.00016438,2]
[330233282,1719197440507,-500.0,0.00016438,2]
[330233283,1719197440516,-5224.8,0.00016438,2]
[330233284,1719197440525,-17505.28,0.00016438,2]
[330233285,1719197440534,-500.0,0.00016438,2]
[330233286,1719197440544,-500.0,0.00016438,2]
[330233287,1719197440553,-678.67,0.00016438,2]
[330233288,1719197440563,-5498.93,0.00016438,2]
[330233289,1719197440572,-500.0,0.00016438,2]
[330233290,1719197440582,-509.00876116,0.00016438,2]
[330233291,1719197440591,-1300.24,0.00016438,2]
[330233292,1719197440600,-11946.46,0.00016438,2]
[330233293,1719197440610,-500.0,0.00016438,2]
[330233294,1719197440619,-500.0,0.00016438,2]
[330233295,1719197440629,-16409.46,0.00016438,2]
[330233296,1719197440638,-500.0,0.00016438,2]
[330233297,1719197440647,-315.08132856,0.00016438,2]
[330233298,1719197440657,-500.0,0.00016438,2]
[330233299,1719197440667,-1083.86,0.00016438,2]
[330233300,1719197440676,-521.66,0.00016438,2]
[330233301,1719197440685,-5054.32,0.00016438,2]
[330233302,1719197440694,-3079.42,0.00016438,2]
[330233303,1719197440704,-500.0,0.00016438,2]
[330233304,1719197440713,-500.0,0.00016438,2]
[330233305,1719197440725,-1156.65,0.00016438,2]
[330233306,1719197440734,-722.83,0.00016438,2]
[330233307,1719197440743,-1814.61,0.00016438,2]
[330233308,1719197440752,-934.11,0.00016438,2]
[330233309,1719197440762,-561.6,0.00016438,2]
[330233310,1719197440771,-821.12,0.00016438,2]
[330233311,1719197440780,-873.49,0.00016438,2]
[330233312,1719197440789,-500.0,0.00016438,2]
[330233313,1719197440799,-500.0,0.00016438,2]
[330233314,1719197440807,-990.65106447,0.00016452,2]
[330233315,1719197440817,-155.67434626,0.00016461,2]
[330233316,1719197440826,-2647.51345546,0.00016466,2]
[330233317,1719197440835,-2647.51345546,0.00016466,2]
[330233318,1719197440844,-2129.2320514,0.00016466,2]
[330233319,1719197440854,-1487.2316115,0.00016486,2]
[330233320,1719197440863,-154.80649189,0.000165,2]
[330233321,1719197440872,-9601.79213166,0.000165,2]
[330233322,1719197440882,-549.71041124,0.000165,2]
[330233323,1719197440891,-627.00263973,0.00016522,2]
[330233324,1719197440900,-401.65252924,0.00016522,2]
[330233325,1719197440910,-490.28883306,0.00016522,2]
[330233326,1719197440919,-947.4992689,0.00016522,2]
[330233327,1719197440929,-193.26898841,0.00016522,2]
[330233328,1719197440938,-947.4992689,0.00016522,2]
[330233329,1719197440947,-1102.94117698,0.00016522,2]
[330233330,1719197440957,-516.79936011,0.00016522,2]
[330233333,1719197440965,-154.80649189,0.00016525,2]
[330233334,1719197440976,-17268.92073413,0.0001657,2]
[330233336,1719197440986,-531.11088939,0.0001657,2]
[330233338,1719197440994,-402.64531294,0.0001657,2]
[330233341,1719197441009,-888.24270622,0.0001657,2]
[330233342,1719197441019,-154.80649189,0.0001657,2]
[330233343,1719197441028,-157.19006853,0.00016589,2]
[330233344,1719197441038,-284.64664354,0.00016589,2]
[330233345,1719197441048,-2040.81356743,0.00016607,2]
[330233346,1719197441057,-2115.26284951,0.00016688,2]
[330233347,1719197441067,-1313.011853,0.00016688,2]
[330233348,1719197441076,-216.08546463,0.00016688,2]
[330233349,1719197441085,-521.14866652,0.00016711,2]
[330233350,1719197441094,-500.0,0.00016712,2]
[330233351,1719197441104,-500.0,0.00016712,2]
[330233352,1719197441113,-500.0,0.00016712,2]
[330233353,1719197441127,-500.0,0.00016712,2]
[330233354,1719197441136,-858.17,0.00016712,2]
[330233355,1719197441146,-500.0,0.00016712,2]
[330233356,1719197441155,-500.0,0.00016712,2]
[330233357,1719197441165,-677.43,0.00016712,2]
[330233358,1719197441174,-500.0,0.00016712,2]
[330233359,1719197441183,-500.0,0.00016712,2]
[330233360,1719197441192,-500.0,0.00016712,2]
[330233361,1719197441203,-500.0,0.00016712,2]
[330233362,1719197441214,-500.0,0.00016712,2]
[330233363,1719197441227,-500.0,0.00016712,2]
[330233364,1719197441236,-500.0,0.00016712,2]
[330233365,1719197441245,-500.0,0.00016712,2]
[330233366,1719197441254,-500.0,0.00016712,2]
[330233367,1719197441263,-500.0,0.00016712,2]
[330233368,1719197441272,-500.0,0.00016712,2]
[330233369,1719197441282,-500.0,0.00016712,2]
[330233370,1719197441291,-500.0,0.00016712,2]
[330233371,1719197441300,-1110.07,0.00016712,2]
[330233372,1719197441309,-500.0,0.00016712,2]
[330233373,1719197441318,-602.49,0.00016712,2]
[330233374,1719197441327,-500.0,0.00016712,2]
[330233375,1719197441336,-500.0,0.00016712,2]
[330233376,1719197441345,-876.56,0.00016712,2]
[330233377,1719197441354,-2695.58,0.00016712,2]
[330233378,1719197441364,-250.0,0.00016712,2]
[330233379,1719197441373,-500.0,0.00016712,2]
[330233380,1719197441382,-500.0,0.00016712,2]
[330233381,1719197441391,-500.0,0.00016712,2]
[330233382,1719197441400,-500.0,0.00016712,2]
[330233383,1719197441409,-500.0,0.00016712,2]
[330233384,1719197441418,-1185.68,0.00016712,2]
[330233385,1719197441427,-500.0,0.00016712,2]
[330233386,1719197441437,-500.0,0.00016712,2]
[330233387,1719197441446,-1391.33,0.00016712,2]
[330233389,1719197441455,-578.72,0.00016712,2]
[330233391,1719197441464,-500.0,0.00016712,2]
[330233393,1719197441475,-500.0,0.00016712,2]
[330233395,1719197441484,-671.08,0.00016712,2]
[330233396,1719197441493,-997.07,0.00016712,2]
[330233397,1719197441502,-500.0,0.00016712,2]
[330233398,1719197441511,-500.0,0.00016712,2]
[330233399,1719197441520,-500.0,0.00016712,2]
[330233400,1719197441530,-500.0,0.00016712,2]
[330233401,1719197441539,-500.0,0.00016712,2]
[330233402,1719197441548,-500.0,0.00016712,2]
[330233403,1719197441557,-1541.0,0.00016712,2]
[330233404,1719197441567,-818.27,0.00016712,2]
[330233405,1719197441576,-500.0,0.00016712,2]
[330233406,1719197441586,-500.0,0.00016712,2]
[330233407,1719197441595,-500.0,0.00016712,2]
[330233408,1719197441605,-500.0,0.00016712,2]
[330233409,1719197441614,-500.0,0.00016712,2]
[330233410,1719197441624,-325.1748145,0.00016712,2]
[330233411,1719197441633,-500.0,0.00016712,2]
[330233412,1719197441642,-500.0,0.00016712,2]
[330233413,1719197441652,-500.0,0.00016712,2]
[330233414,1719197441661,-500.0,0.00016712,2]
[330233415,1719197441670,-538.23,0.00016712,2]
[330233416,1719197441679,-500.0,0.00016712,2]
[330233417,1719197441689,-538.1,0.00016712,2]
[330233418,1719197441698,-508.29561999,0.00016712,2]
[330233419,1719197441707,-500.0,0.00016712,2]
[330233420,1719197441716,-500.0,0.00016712,2]
[330233421,1719197441727,-195.3,0.00016712,2]
[330233422,1719197441736,-500.0,0.00016712,2]
[330233423,1719197441745,-500.0,0.00016712,2]
[330233424,1719197441754,-1170.81,0.00016712,2]
[330233425,1719197441763,-500.0,0.00016712,2]
[330233426,1719197441773,-738.91957577,0.00016712,2]
[330233427,1719197441788,-385.44042423,0.00016712,2]
[330233428,1719197441797,-577.63817331,0.00016712,2]
[330233429,1719197441963,-253.70292945,0.00016438,2]
[330233430,1719197441976,-246.29707055,0.00016438,2]
[330233431,1719197441985,-277.70568759,0.00016711,2]
[330233527,1719197449547,-829.6,0.00016438,2]
[330233528,1719197449556,-500.0,0.00016438,2]
[330233529,1719197449565,-2647.51345546,0.00016461,2]
[330233530,1719197449574,-2115.26284951,0.00016607,2]
[330233531,1719197449584,-179.75375228,0.00016711,2]
[330233532,1719197449593,-855.48169643,0.00016712,2]
[330233533,1719197449605,-5941.91005427,0.00016712,2]
[330233534,1719197617678,3000.0,0.000225,30]
[330233539,1719198222039,3000.0,0.000225,30]
[330233540,1719198343223,-300.0,0.00015183,2]
[330233541,1719198343245,-24900.0,0.00015184,2]
[330233542,1719198343266,-500.0,0.00015602,2]
[330233543,1719198343286,-9601.79213166,0.00015838,2]
[330233544,1719198343307,-2292.57094443,0.00015868,2]
[330233545,1719198343326,-876.0,0.00015969,2]
[330233546,1719198343346,-154.79103211,0.00015999,2]
[330233547,1719198343366,-154.79103211,0.00016023,2]
[330233548,1719198343385,-2040.81356743,0.00016043,2]
[330233549,1719198343404,-10562.28786365,0.00016192,2]
[330233550,1719198343429,-153.8205941,0.000163,2]
[330233551,1719198343449,-153.0,0.000163,2]
[330233552,1719198343469,-153.0,0.000163,2]
[330233553,1719198343488,-307.4525034,0.000163,2]
[330233554,1719198343509,-723.78639686,0.00016376,2]
[330233555,1719198343528,-60017.1465765,0.00016376,2]
[330233556,1719198343547,-153.0,0.000164,2]
[330233557,1719198343568,-153.0,0.000164,2]
[330233558,1719198343587,-500.0,0.00016438,2]
[330233559,1719198343607,-859.32,0.00016438,2]
[330233560,1719198343626,-500.0,0.00016438,2]
[330233561,1719198343645,-500.0,0.00016438,2]
[330233562,1719198343663,-678.29,0.00016438,2]
[330233563,1719198343687,-542.12965791,0.00016438,2]
[330233564,1719198343705,-500.0,0.00016438,2]
[330233565,1719198343725,-500.0,0.00016438,2]
[330233566,1719198343745,-500.0,0.00016438,2]
[330233567,1719198343764,-500.0,0.00016438,2]
[330233568,1719198343783,-500.0,0.00016438,2]
[330233569,1719198343802,-500.0,0.00016438,2]
[330233570,1719198343822,-500.0,0.00016438,2]
[330233571,1719198343841,-500.0,0.00016438,2]
[330233572,1719198343860,-500.0,0.00016438,2]
[330233573,1719198343880,-325.1748145,0.00016438,2]
[330233574,1719198343899,-500.0,0.00016438,2]
[330233575,1719198343918,-500.0,0.00016438,2]
[330233576,1719198343940,-500.0,0.00016438,2]
[330233577,1719198343960,-515.81,0.00016438,2]
[330233578,1719198343980,-500.0,0.00016438,2]
[330233579,1719198343999,-1122.03,0.00016438,2]
[330233580,1719198344018,-500.0,0.00016438,2]
[330233581,1719198344038,-500.0,0.00016438,2]
[330233582,1719198344059,-500.0,0.00016438,2]
[330233583,1719198344080,-500.0,0.00016438,2]
[330233584,1719198344100,-500.0,0.00016438,2]
[330233585,1719198344121,-500.0,0.00016438,2]
[330233586,1719198344141,-500.0,0.00016438,2]
[330233587,1719198344161,-332.28450034,0.00016438,2]
[330233588,1719198428116,-500.0,0.00015602,2]
[330233589,1719198428137,-154.79103211,0.00015999,2]
[330233590,1719198428157,-300.0,0.00016437,2]
[330233591,1719198428177,-245.10549966,0.00016438,2]
[330233592,1719198428197,-500.0,0.00016438,2]
[330233593,1719198428219,-548.8,0.00016438,2]
[330233594,1719198428241,-500.0,0.00016438,2]
[330233595,1719198428260,-500.0,0.00016438,2]
[330233596,1719198428280,-1003.84,0.00016438,2]
[330233597,1719198428299,-500.0,0.00016438,2]
[330233598,1719198428319,-500.0,0.00016438,2]
[330233599,1719198428339,-840.03,0.00016438,2]
[330233600,1719198428359,-993.94,0.00016438,2]
[330233601,1719198428378,-800.06,0.00016438,2]
[330233602,1719198428399,-500.0,0.00016438,2]
[330233603,1719198428420,-250.0,0.00016438,2]
[330233604,1719198428441,-500.0,0.00016438,2]
[330233605,1719198428464,-1819.56,0.00016438,2]
[330233606,1719198428490,-500.0,0.00016438,2]
[330233607,1719198428509,-731.36,0.00016438,2]
[330233608,1719198428531,-1140.38,0.00016438,2]
[330233609,1719198428552,-500.0,0.00016438,2]
[330233610,1719198428572,-575.29,0.00016438,2]
[330233611,1719198428592,-500.0,0.00016438,2]
[330233612,1719198428746,-500.0,0.00016438,2]
[330233613,1719198428767,-500.0,0.00016438,2]
[330233614,1719198428788,-650.39,0.00016438,2]
[330233615,1719198428808,-500.0,0.00016438,2]
[330233616,1719198428827,-500.0,0.00016438,2]
[330233617,1719198428847,-500.0,0.00016438,2]
[330233618,1719198428866,-500.0,0.00016438,2]
[330233619,1719198428886,-500.0,0.00016438,2]
[330233620,1719198428906,-500.0,0.00016438,2]
[330233621,1719198428926,-500.0,0.00016438,2]
[330233622,1719198428947,-692.71,0.00016438,2]
[330233623,1719198428967,-895.19,0.00016438,2]
[330233624,1719198428990,-500.0,0.00016438,2]
[330233625,1719198429010,-837.09,0.00016438,2]
[330233626,1719198429030,-500.0,0.00016438,2]
[330233627,1719198429051,-538.2,0.00016438,2]
[330233628,1719198429072,-500.0,0.00016438,2]
[330233629,1719198429096,-508.29561999,0.00016438,2]
[330233630,1719198429118,-500.0,0.00016438,2]
[330233631,1719198429139,-500.0,0.00016438,2]
[330233632,1719198429161,-500.0,0.00016438,2]
[330233633,1719198429182,-500.0,0.00016438,2]
[330233634,1719198429202,-500.0,0.00016438,2]
[330233635,1719198429223,-500.0,0.00016438,2]
[330233636,1719198429247,-500.0,0.00016438,2]
[330233637,1719198429268,-1063.82,0.00016438,2]
[330233638,1719198429289,-500.0,0.00016438,2]
[330233639,1719198429310,-500.0,0.00016438,2]
[330233640,1719198429332,-500.0,0.00016438,2]
[330233641,1719198429353,-500.0,0.00016438,2]
[330233642,1719198429374,-500.0,0.00016438,2]
[330233643,1719198429395,-500.0,0.00016438,2]
[330233644,1719198429415,-2583.27,0.00016438,2]
[330233645,1719198429437,-1061.45,0.00016438,2]
[330233646,1719198429460,-500.0,0.00016438,2]
[330233647,1719198429484,-500.0,0.00016438,2]
[330233648,1719198429505,-500.0,0.00016438,2]
[330233649,1719198429526,-500.0,0.00016438,2]
[330233650,1719198429548,-894.88,0.00016438,2]
[330233651,1719198429568,-500.0,0.00016438,2]
[330233652,1719198429594,-2289.74,0.00016438,2]
[330233653,1719198429614,-500.0,0.00016438,2]
[330233654,1719198429634,-500.0,0.00016438,2]
[330233655,1719198429656,-1747.72,0.00016438,2]
[330233656,1719198429676,-630.38,0.00016438,2]
[330233657,1719198429696,-1401.66,0.00016438,2]
[330233658,1719198429717,-4345.17,0.00016438,2]
[330233659,1719198429742,-554.6,0.00016438,2]
[330233660,1719198429763,-684.24,0.00016438,2]
[330233661,1719198429783,-1136.28,0.00016438,2]
[330233662,1719198429805,-636.34,0.00016438,2]
[330233663,1719198431148,-1333.36,0.00016438,2]
[330233664,1719198431182,-500.0,0.00016438,2]
[330233665,1719198431212,-500.0,0.00016438,2]
[330233666,1719198431241,-500.0,0.00016438,2]
[330233667,1719198431264,-500.0,0.00016438,2]
[330233668,1719198431287,-500.0,0.00016438,2]
[330233669,1719198431309,-643.12,0.00016438,2]
[330233670,1719198431331,-736.02,0.00016438,2]
[330233671,1719198431353,-699.09,0.00016438,2]
[330233672,1719198431375,-1476.79,0.00016438,2]
[330233673,1719198431396,-2886.67,0.00016438,2]
[330233674,1719198431417,-955.52,0.00016438,2]
[330233675,1719198431442,-602.53,0.00016438,2]
[330233676,1719198431464,-5157.62,0.00016438,2]
[330233677,1719198431490,-500.0,0.00016438,2]
[330233678,1719198431512,-500.0,0.00016438,2]
[330233679,1719198431538,-500.0,0.00016438,2]
[330233680,1719198431559,-500.0,0.00016438,2]
[330233681,1719198431581,-500.0,0.00016438,2]
[330233682,1719198431602,-784.17,0.00016438,2]
[330233683,1719198431624,-500.0,0.00016438,2]
[330233684,1719198431645,-2136.96,0.00016438,2]
[330233685,1719198431665,-500.0,0.00016438,2]
[330233686,1719198431686,-4479.52713373,0.00016438,2]
[330233687,1719198449171,-527.57286627,0.00016438,2]
[330233688,1719198449192,-3363.99,0.00016438,2]
[330233689,1719198449213,-500.0,0.00016438,2]
[330233690,1719198449232,-15451.71402373,0.00016438,2]
[330233718,1719198633942,-876.0,0.00016024,2]
[330233719,1719198633952,-600.0,0.00016044,2]
[330233720,1719198633961,-600.0,0.00016211,2]
[330233721,1719198633971,-600.0,0.00016378,2]
[330233722,1719198633980,-933.08575257,0.000164,2]
[330233723,1719198633989,-500.0,0.00016438,2]
[330233724,1719198633999,-500.0,0.00016438,2]
[330233725,1719198634008,-500.0,0.00016438,2]
[330233726,1719198634018,-500.0,0.00016438,2]
[330233727,1719198634027,-500.0,0.00016438,2]
[330233728,1719198634037,-186.05818825,0.00016438,2]
[330233729,1719198634049,-637.45181175,0.00016438,2]
[330233730,1719198634059,-500.0,0.00016438,2]
[330233731,1719198634068,-500.0,0.00016438,2]
[330233732,1719198634078,-500.0,0.00016438,2]
[330233733,1719198634088,-500.0,0.00016438,2]
[330233734,1719198634097,-500.0,0.00016438,2]
[330233735,1719198634106,-493.3,0.00016438,2]
[330233736,1719198634116,-179.0,0.00016438,2]
[330233737,1719198634128,-1075.28,0.00016438,2]
[330233738,1719198634137,-500.0,0.00016438,2]
[330233739,1719198634147,-500.0,0.00016438,2]
[330233740,1719198634157,-500.0,0.00016438,2]
[330233741,1719198634167,-500.0,0.00016438,2]
[330233742,1719198634176,-500.0,0.00016438,2]
[330233743,1719198634186,-795.03,0.00016438,2]
[330233744,1719198634195,-500.0,0.00016438,2]
[330233745,1719198634204,-1095.62,0.00016438,2]
[330233746,1719198634213,-500.0,0.00016438,2]
[330233747,1719198634223,-4227.92,0.00016438,2]
[330233748,1719198634232,-500.0,0.00016438,2]
[330233749,1719198634241,-23783.29,0.00016438,2]
[330233750,1719198634251,-287.09196786,0.00016438,2]
[330233751,1719198634260,-500.0,0.00016438,2]
[330233752,1719198634270,-500.0,0.00016438,2]
[330233753,1719198634280,-650.02,0.00016438,2]
[330233754,1719198634289,-500.0,0.00016438,2]
[330233755,1719198634299,-205.67097183,0.00016438,2]
[330233826,1719198645549,-739.26902817,0.00016438,2]
[330233827,1719198645558,-166.25146166,0.00016438,2]
[330233828,1719198645568,-857.59,0.00016438,2]
[330233829,1719198645577,-655.73,0.00016438,2]
[330233830,1719198645589,-2194.34,0.00016438,2]
[330233831,1719198645598,-500.0,0.00016438,2]
[330233832,1719198645610,-962.01,0.00016438,2]
[330233833,1719198645623,-500.0,0.00016438,2]
[330233834,1719198645638,-155.02687329,0.00016438,2]
[330233835,1719198645651,-1674.9,0.00016438,2]
[330233836,1719198645663,-4164.12,0.00016438,2]
[330233837,1719198645674,-500.0,0.00016438,2]
[330233838,1719198645687,-500.0,0.00016438,2]
[330233839,1719198645700,-1343.26,0.00016438,2]
[330233840,1719198645712,-500.0,0.00016438,2]
[330233841,1719198645724,-609.83,0.00016438,2]
[330233842,1719198645736,-500.0,0.00016438,2]
[330233843,1719198645749,-705.35,0.00016438,2]
[330233844,1719198645761,-952.53,0.00016438,2]
[330233845,1719198645774,-500.0,0.00016438,2]
[330233846,1719198645787,-766.73,0.00016438,2]
[330233847,1719198645800,-500.0,0.00016438,2]
[330233848,1719198645813,-500.0,0.00016438,2]
[330233849,1719198645824,-500.0,0.00016438,2]
[330233850,1719198645837,-1743.75,0.00016438,2]
[330233851,1719198645848,-500.0,0.00016438,2]
[330233852,1719198645861,-2766.4,0.00016438,2]
[330233853,1719198645873,-769.83,0.00016438,2]
[330233854,1719198645887,-700.88,0.00016438,2]
[330233855,1719198645898,-2047.92,0.00016438,2]
[330233856,1719198645910,-4942.72,0.00016438,2]
[330233857,1719198645921,-1092.86,0.00016438,2]
[330233858,1719198645931,-3223.82,0.00016438,2]
[330233859,1719198645944,-500.0,0.00016438,2]
[330233860,1719198645955,-500.0,0.00016438,2]
[330233861,1719198645968,-551.32,0.00016438,2]
[330233862,1719198645980,-16132.07,0.00016438,2]
[330233863,1719198645992,-500.0,0.00016438,2]
[330233864,1719198646003,-500.0,0.00016438,2]
[330233865,1719198646016,-443.16072412,0.00016438,2]
[330233866,1719198646029,-500.0,0.00016438,2]
[330233867,1719198646042,-5269.8,0.00016438,2]
[330233868,1719198646055,-4798.47,0.00016438,2]
[330233869,1719198646065,-500.0,0.00016438,2]
[330233870,1719198646076,-500.0,0.00016438,2]
[330233871,1719198646087,-611.11390849,0.00016438,2]
[330233872,1719198646098,-500.0,0.00016438,2]
[330233873,1719198646110,-500.0,0.00016438,2]
[330233874,1719198646122,-500.0,0.00016438,2]
[330233875,1719198646134,-1038.7,0.00016438,2]
[330233876,1719198646148,-500.0,0.00016438,2]
[330233877,1719198646159,-11448.69,0.00016438,2]
[330233878,1719198646169,-623.29,0.00016438,2]
[330233879,1719198646180,-500.0,0.00016438,2]
[330233880,1719198646193,-1246.07,0.00016438,2]
[330233881,1719198646204,-500.0,0.00016438,2]
[330233882,1719198646216,-500.0,0.00016438,2]
[330233883,1719198646228,-1108.46,0.00016438,2]
[330233884,1719198646239,-4843.73,0.00016438,2]
[330233885,1719198646250,-2951.11,0.00016438,2]
[330233886,1719198646261,-786.91,0.00016438,2]
[330233887,1719198646272,-487.86393852,0.00016438,2]
[330233888,1719198646283,-663.85,0.00016438,2]
[330233889,1719198646296,-500.0,0.00016438,2]
[330233890,1719198646307,-500.0,0.00016438,2]
[330233891,1719198646320,-857.89,0.00016438,2]
[330233892,1719198646331,-1739.01,0.00016438,2]
[330233893,1719198646341,-500.0,0.00016438,2]
[330233894,1719198646353,-802.21,0.00016438,2]
[330233895,1719198646364,-500.0,0.00016438,2]
[330233896,1719198646375,-500.0,0.00016438,2]
[330233897,1719198646388,-6972.7816651,0.00016444,2]
[330233898,1719198646398,-5390.63121544,0.0001645,2]
[330233899,1719198646409,-3923.79380918,0.00016461,2]
[330233900,1719198646420,-3923.79380918,0.00016461,2]
[330233901,1719198646431,-154.79103211,0.00016486,2]
[330233902,1719198646442,-154.79103211,0.00016489,2]
[330233903,1719198646453,-154.79103211,0.000165,2]
[330233904,1719198646464,-154.79103211,0.00016544,2]
[330233905,1719198646475,-151.72512291,0.00016544,2]
[330233906,1719198646486,-600.0,0.00016545,2]
[330233907,1719198646498,-500.0,0.00016712,2]
[330233908,1719198646511,-178.82498227,0.00016712,2]
[330233909,1719198646522,-333.06771048,0.00016712,2]
[330233910,1719198646537,-244.32228952,0.00016712,2]
[330233911,1719198646551,-500.0,0.00016712,2]
[330233912,1719198646561,-500.0,0.00016712,2]
[330233913,1719198646572,-840.03,0.00016712,2]
[330233914,1719198646585,-250.0,0.00016712,2]
[330233915,1719198646596,-500.0,0.00016712,2]
[330233916,1719198646608,-500.0,0.00016712,2]
[330233917,1719198646619,-500.0,0.00016712,2]
[330233918,1719198646631,-500.0,0.00016712,2]
[330233919,1719198646644,-500.0,0.00016712,2]
[330233920,1719198646655,-500.0,0.00016712,2]
[330233921,1719198646667,-500.0,0.00016712,2]
[330233922,1719198646678,-500.0,0.00016712,2]
[330233923,1719198646689,-500.0,0.00016712,2]
[330233924,1719198646701,-500.0,0.00016712,2]
[330233925,1719198646712,-571.98038051,0.00016712,2]
[330233926,1719198646724,-500.0,0.00016712,2]
[330233927,1719198646735,-1063.82,0.00016712,2]
[330233928,1719198646746,-500.0,0.00016712,2]
[330233929,1719198646758,-500.0,0.00016712,2]
[330233930,1719198646770,-500.0,0.00016712,2]
[330233931,1719198646781,-500.0,0.00016712,2]
[330233932,1719198646793,-500.0,0.00016712,2]
[330233933,1719198646804,-500.0,0.00016712,2]
[330233934,1719198646816,-2583.27,0.00016712,2]